[Event "Frauenbundesliga 2024-25"]
[Site "Germany"]
[Date "2025.01.25"]
[Round "3.8"]
[White "Sliwicka, Alicja"]
[Black "Khrapko, Marharyta"]
[Result "1-0"]
[Annotator "TA"]
[ECO "B12"]
[WhiteElo "2344"]
[BlackElo "2168"]
[PlyCount "77"]
[EventDate "2024.11.06"]
[EventType "team-tourn"]
[EventCountry "GER"]
[SourceTitle "playchess.com"]
[Source "ChessBase"]
[SourceQuality "1"]
[WhiteTeam "Rodewischer Schachmiezen"]
[BlackTeam "Bayern Muenchen"]
[TimeControl "40/5400+30:1800+30"]

{[%evp 9,77,-7,4,7,4,-9,33,31,30,28,29,37,112,86,110,68,75,21,79,88,102,52,110,119,112,94,90,89,162,120,132,137,205,135,143,143,238,231,275,215,337,242,245,236,215,179,254,249,269,262,247,247,273,251,264,276,261,278,579,509,674,624,1216,1103,29991,29992,29992,29992,29992,29992]} 1. e4 {[%emt 0:00:02]} c6 {[%emt 0:00:01]} 2. d4 {[%emt 0:00:07]} d5 {[%emt 0:00:04]} 3. e5 {[%emt 0:00:07]} c5 {[%emt 0:00:11]} 4. Nf3 {[%emt 0:00:09]} cxd4 {[%emt 0:00:06]} 5. Qxd4 {[%emt 0:00:06]} e6 {[%emt 0:02:35]} 6. Bd3 {[%emt 0:02:32]} Nc6 {[%emt 0:02:05]} 7. Qf4 {[%emt 0:01:35]} Qc7 {[%emt 0:02:33]} 8. Nc3 {[%emt 0:04:53] White is slightly better.} a6 {[%emt 0:00:23] Inhibits Nb5.} 9. O-O {[%emt 0:00:47]} Nge7 {[%emt 0:18:16]} 10. Re1 {[%emt 0:02:49]} f5 {[%emt 0:14:42]} (10... Ng6 $14 11. Qg3 Bd7) 11. h4 {[%emt 0:03:22]} g6 {[%emt 0:17:19]} 12. h5 {[%emt 0:09:04]} h6 {[%emt 0:10:31]} 13. hxg6 {[%emt 0:01:29] White has more active pieces. The black rooks are passive.} (13. Qa4 $16) 13... Nxg6 {[%emt 0:00:02]} (13... Bd7 $1 $11) 14. Qh2 $16 {[%emt 0:01:01][%cal Od3f5]} Qf7 {[%emt 0:07:46]} 15. Ne2 {[%emt 0:01:46]} (15. Be3 $16) 15... Bg7 {[%emt 0:01:31]} (15... Bd7 $14) 16. Ned4 {[%emt 0:00:54]} Nge7 {[%emt 0:02:29]} 17. b3 {[%emt 0:04:16]} Bd7 {[%emt 0:02:02]} 18. Ba3 {[%emt 0:02:56]} O-O {[%emt 0:08:12]} (18... Nxd4 $16 19. Nxd4 O-O-O) 19. Bc1 {[%emt 0:05:28]} Nxd4 {[%emt 0:02:02]} 20. Nxd4 {[%emt 0:00:09]} f4 {[%emt 0:00:35]} (20... Nc6 $16) 21. Bd2 {[%emt 0:03:11]} Nc6 {[%emt 0:01:48]} 22. Nf3 {[%emt 0:00:49]} b5 {[%emt 0:01:19]} (22... Be8 $16 {is a better defense.} 23. Ng5 Qe7) 23. a4 $18 {[%emt 0:03:40][%cal Ba2a4,Ba4a5][%mdl 32]} Rab8 {[%emt 0:01:44]} 24. Re2 {[%emt 0:02:22]} Ne7 {[%emt 0:01:26]} (24... b4 $142 25. Bxa6 Qf5) 25. a5 {[%emt 0:00:39]} Nc6 {[%emt 0:01:00][%cal Be7c6,Bc6d4,Bd4e2][%mdl 32]} 26. Rf1 {[%emt 0:03:05]} Be8 {[%emt 0:00:25]} 27. Qh3 {[%emt 0:04:46]} Qe7 {[%emt 0:02:12]} (27... Nd8 {keeps fighting.} 28. Nh4 Qe7) 28. g3 {[%emt 0:01:57]} fxg3 {[%emt 0:00:10]} 29. fxg3 {[%emt 0:02:28][%cal Bf2g3,Bg3g4][%mdl 32]} Rxf3 {[%emt 0:00:20]} 30. Rxf3 $40 {[%emt 0:00:39][%mdl 128] White wants a kill.} Nd4 {[%emt 0:00:08]} 31. Rff2 {[%emt 0:00:43]} Nxe2+ {[%emt 0:00:06]} 32. Rxe2 {[%emt 0:00:09]} h5 {[%emt 0:00:46]} 33. g4 {[%emt 0:01:08]} Qc5+ $2 {[%emt 0:01:30]} (33... h4 34. Be1 Qg5 35. Bxh4 (35. Qxh4 Qxh4 36. Bxh4 b4 $18) 35... Qh6) 34. Be3 {[%emt 0:01:17][%cal Bd2e3,Be3f4,Bf4h6][%mdl 32]} d4 {[%emt 0:00:01]} 35. Bf4 {[%emt 0:00:16]} h4 {[%emt 0:01:02]} 36. Qxh4 {[%emt 0:00:28] [#] And now Rf2 would win.} Bc6 {[%emt 0:00:17]} 37. Rf2 {[%emt 0:01:25] White mates.} Rb7 {[%emt 0:00:41]} 38. Qh7+ {[%emt 0:01:21]} Kf8 {[%emt 0:00:01]} 39. Bh6+ {[%emt 0:01:13] Weighted Error Value: White=0.22 (precise) /Black=0.54.  Mistake:       	White=2     	Black=9      Inaccurate:     	White=2     	Black=3      OK:         	White=9     	Black=6      Best:        	---       	Black=2} 1-0

[Event "Frauenbundesliga 2024-25"]
[Site "Germany"]
[Date "2025.01.25"]
[Round "3.8"]
[White "Berzina, Ilze"]
[Black "Papp, Sarah"]
[Result "0-1"]
[Annotator "TA"]
[ECO "C03"]
[WhiteElo "2192"]
[BlackElo "2268"]
[PlyCount "60"]
[EventDate "2024.11.06"]
[EventType "team-tourn"]
[EventCountry "GER"]
[SourceTitle "playchess.com"]
[Source "ChessBase"]
[SourceQuality "1"]
[WhiteTeam "1871 Loeberitz"]
[BlackTeam "Hamburger SK"]
[TimeControl "40/5400+30:1800+30"]

{[%evp 13,60,20,25,1,18,40,38,48,57,58,66,55,66,35,37,37,35,14,29,8,14,24,12,0,0,0,77,82,502,498,939,921,29971,29965,29984,29985,29991,29991,29991,-1164,-1174,-1258,-1186,-1188,-1425,-1468,-1465,-3460,-3107]} 1. e4 {[%emt 0:00:04]} e6 {[%emt 0:00:03]} 2. d4 {[%emt 0:00:44]} d5 {[%emt 0:00:04]} 3. Nd2 {[%emt 0:00:42]} Be7 {[%emt 0:00:13]} 4. Bd3 {[%emt 0:05:17]} Nf6 {[%emt 0:02:40]} 5. Ngf3 {[%emt 0:03:03]} c5 {[%emt 0:00:13]} 6. exd5 {[%emt 0:01:19]} Qxd5 {[%emt 0:00:06]} 7. dxc5 {[%emt 0:01:52]} Nbd7 {[%emt 0:03:39]} 8. O-O {[%emt 0:05:24] C03: French Tarrasch: Unusual Black 3rd moves.} O-O {[%emt 0:05:00]} 9. b4 {[%emt 0:04:35]} a5 {[%emt 0:00:49]} 10. Bc4 {[%emt 0:00:25] White is slightly better.} Qh5 {[%emt 0:06:34]} 11. c3 {[%emt 0:01:17]} Rd8 $146 {[%emt 0:13:51]} (11... b6 12. c6 Ne5 13. Be2 Nxf3+ 14. Bxf3 Qe5 15. b5 Qxb5 16. Rb1 Qc5 17. Nb3 Qf5 {0-1 Morales,C (2127)-Cevizci,Y (2035) Titled Tuesday intern op 09th Jul Early blitz 2024 (2)}) 12. Qe2 {[%emt 0:11:57] Prevents Ne5.} Nd5 {[%emt 0:07:19]} 13. Ne4 {[%emt 0:05:42] Black must now prevent Bxd5.} Ne5 $1 {[%emt 0:07:07]} 14. Nxe5 {[%emt 0:05:31]} Qxe5 {[%emt 0:00:13]} 15. f4 {[%emt 0:06:13]} Qc7 {[%emt 0:03:27]} 16. Kh1 {[%emt 0:13:08]} b6 {[%emt 0:04:38] [#]} 17. f5 $1 $36 {[%emt 0:05:17][%mdl 2048] White is pushing.} bxc5 {[%emt 0:15:01]} 18. bxc5 {[%emt 0:03:37]} exf5 {[%emt 0:06:06]} 19. Nd6 {[%emt 0:09:35]} Qxc5 {[%emt 0:02:08]} (19... Be6 $11 {keeps the balance.}) 20. Bxd5 $16 {[%emt 0:00:28]} (20. Nxf5 Bf6 $11 (20... Nxc3 $2 21. Qxe7 Qxe7 22. Nxe7+ $18)) 20... Ba6 $2 {[%emt 0:08:38][%mdl 8192]} (20... Qxd6 $16 {is tougher.} 21. Bxa8 Ba6) 21. Bxf7+ $18 {[%emt 0:05:07]} Kf8 {[%emt 0:05:58] [#]} (21... Kh8 $142 22. Qxe7 Bxf1) 22. Qh5 $1 {[%emt 0:04:57]} Qxd6 {[%emt 0:04:20] [#]} (22... Rxd6 23. Bb3) 23. Bb3 $1 {[%emt 0:00:15][%csl Gb3][%cal Rh5f7]} Qg6 {[%emt 0:03:07]} (23... Qf6 24. Rxf5) 24. Rxf5+ {[%emt 0:00:17]} Bf6 {[%emt 0:00:30]} 25. Ba3+ {[%emt 0:00:38]} (25. Rxa5 Qxh5 26. Ba3+ (26. Rxh5 Bc4 $14) 26... Ke8 27. Rxh5 Rd2 $18) 25... Ke8 {[%emt 0:00:04] [#]} 26. Qe2+ $4 {[%emt 0:00:37][%mdl 8192]} Bxe2 $19 {[%emt 0:00:09] Black is clearly winning.} 27. Ba4+ {[%emt 0:01:28] [#]} Rd7 $1 {[%emt 0:00:22]} 28. Rd5 {[%emt 0:00:29] [#]} (28. Bxd7+ Kxd7) 28... Rad8 $1 {[%emt 0:00:28][%cal Og6e4] aiming for ...Qe4!.} 29. Re1 {[%emt 0:00:18] [#]} Qe4 $1 {[%emt 0:01:18][%cal Oe4a4]} 30. Rd2 {[%emt 0:00:23]} (30. Bc6 Qe6) 30... Qxa4 {[%emt 0:00:12] Never resign too early!   Weighted Error Value: White=0.68/Black=0.56  Loses game:     	---       	Black=1      Mistake:       	---       	Black=2      Inaccurate:     	White=1     	Black=1      OK:         	White=7     	Black=5      Best:        	White=3     	---        Strong:       	---       	Black=1} 0-1

[Event "Frauenbundesliga 2024-25"]
[Site "Germany"]
[Date "2025.01.25"]
[Round "3.8"]
[White "Mgeladze, Kesaria"]
[Black "Javakhishvili, Lela"]
[Result "1/2-1/2"]
[Annotator "TA"]
[ECO "C45"]
[WhiteElo "2157"]
[BlackElo "2426"]
[PlyCount "59"]
[EventDate "2024.11.06"]
[EventType "team-tourn"]
[EventCountry "GER"]
[SourceTitle "playchess.com"]
[Source "ChessBase"]
[SourceQuality "1"]
[WhiteTeam "Hemer 1932"]
[BlackTeam "Schwaebisch Hall"]
[TimeControl "40/5400+30:1800+30"]

{[%evp 24,59,0,0,0,0,0,0,0,0,0,0,0,-33,-29,-32,-27,-25,-25,-27,-27,-29,-29,-28,-27,-40,-12,-16,-21,-38,-19,-22,0,-45,0,-20,0,-48]} 1. e4 {[%emt 0:00:04]} e5 {[%emt 0:00:15]} 2. Nf3 {[%emt 0:00:15]} Nc6 {[%emt 0:00:05]} 3. d4 {[%emt 0:00:22]} exd4 {[%emt 0:00:12]} 4. Nxd4 {[%emt 0:00:05]} Nf6 {[%emt 0:00:31]} 5. Nxc6 {[%emt 0:00:09]} bxc6 {[%emt 0:00:03]} 6. e5 {[%emt 0:00:05]} Qe7 {[%emt 0:00:07]} 7. Qe2 {[%emt 0:00:08]} Nd5 {[%emt 0:00:05]} 8. g3 {[%emt 0:00:06]} g6 {[%emt 0:03:33]} 9. c4 {[%emt 0:00:14]} Ba6 {[%emt 0:03:16]} 10. b3 {[%emt 0:00:27]} Bg7 {[%emt 0:00:11]} 11. Bb2 {[%emt 0:00:08]} O-O {[%emt 0:01:02]} 12. Bg2 {[%emt 0:00:11]} Rae8 {[%emt 0:08:25]} 13. O-O {[%emt 0:00:10]} Bxe5 {[%emt 0:00:12]} 14. Qxe5 {[%emt 0:00:12]} Qxe5 {[%emt 0:00:02]} 15. Bxe5 {[%emt 0:00:08]} Rxe5 {[%emt 0:00:05]} 16. cxd5 {[%emt 0:00:07]} Bxf1 {[%emt 0:00:03]} 17. Kxf1 {[%emt 0:00:06]} cxd5 {[%emt 0:00:05]} 18. Nc3 {[%emt 0:00:38]} (18. f4 $5 Re3 19. Bxd5 $11) 18... c6 {[%emt 0:00:04]} 19. Rd1 {[%emt 0:00:50]} a5 {[%emt 0:00:07]} 20. Bf3 {[%emt 0:02:53]} Rb8 {[%emt 0:01:37]} 21. Na4 {[%emt 0:19:13]} Re7 {[%emt 0:09:20]} 22. Rc1 {[%emt 0:07:03]} Kf8 {[%emt 0:06:16]} 23. Rc5 {[%emt 0:05:38]} Ra8 $1 {[%emt 0:00:25]} ({Much worse is} 23... Rb5 24. Rxb5 cxb5 25. Nc3 $14) 24. Bg4 {[%emt 0:11:36]} f5 {[%emt 0:03:51]} 25. Be2 {[%emt 0:00:56]} Kf7 {[%emt 0:03:03]} 26. Nb6 {[%emt 0:11:17]} Rb8 {[%emt 0:01:20]} 27. Na4 {[%emt 0:00:31]} Ra8 {[%emt 0:08:16]} 28. Nb6 {[%emt 0:02:53]} Rb8 {[%emt 0:00:11]} 29. Na4 {[%emt 0:00:08]} Ra8 {[%emt 0:00:07]} 30. Nb6 {[%emt 0:00:05] Weighted Error Value: White=0.04 (flawless) /Black=0.11 (very precise) .  Inaccurate:     	White=1     	Black=1      OK:         	White=9     	Black=5      Strong:       	---       	Black=1} 1/2-1/2

[Event "Frauenbundesliga 2024-25"]
[Site "Germany"]
[Date "2025.01.25"]
[Round "3.9"]
[White "Khotenashvili, Bella"]
[Black "Kucharska, Honorata"]
[Result "1-0"]
[Annotator "TA"]
[ECO "C00"]
[WhiteElo "2420"]
[BlackElo "2071"]
[PlyCount "135"]
[EventDate "2024.11.06"]
[EventType "team-tourn"]
[EventCountry "GER"]
[SourceTitle "playchess.com"]
[Source "ChessBase"]
[SourceQuality "1"]
[WhiteTeam "Schwaebisch Hall"]
[BlackTeam "Hemer 1932"]
[TimeControl "40/5400+30:1800+30"]

{[%evp 20,135,-8,-31,12,6,5,0,43,-1,71,22,31,-14,7,6,10,6,39,18,4,16,74,29,36,43,33,39,34,39,36,26,39,39,48,45,51,40,40,40,40,40,40,40,40,34,84,71,84,59,84,42,84,84,84,77,83,83,85,43,84,84,154,130,141,117,112,124,116,118,118,115,98,92,86,83,103,99,103,100,91,47,102,98,97,71,127,123,111,132,171,168,302,315,300,277,402,439,439,419,441,416,416,406,499,522,562,558,558,558,815,789,890,811,931,944,803,644]} 1. Nf3 {[%emt 0:00:04]} d5 {[%emt 0:00:12]} 2. g3 {[%emt 0:00:04]} Nf6 {[%emt 0:00:12]} 3. Bg2 {[%emt 0:00:06]} e6 {[%emt 0:01:01]} 4. O-O {[%emt 0:00:13]} c5 {[%emt 0:00:27]} 5. d3 {[%emt 0:00:25]} Nc6 {[%emt 0:00:30]} 6. Nbd2 {[%emt 0:00:05][%cal Bb1d2,Bd2f1,Bf1e3,Be3c4][%mdl 32]} Be7 {[%emt 0:02:15]} 7. e4 {[%emt 0:00:33]} O-O {[%emt 0:00:32]} 8. Re1 {[%emt 0:00:09]} Qc7 {[%emt 0:02:44]} 9. Nf1 {[%emt 0:01:49]} dxe4 {[%emt 0:04:24]} 10. dxe4 {[%emt 0:00:06]} Rd8 {[%emt 0:00:04]} 11. Qe2 {[%emt 0:00:16]} e5 {[%emt 0:00:33] C00: French: Unusual White 2nd moves.} 12. c3 {[%emt 0:00:12] Against Nd4} h6 {[%emt 0:03:41]} 13. Nh4 {[%emt 0:06:53][%cal Bf3h4,Bh4f5,Bf5e3,Be3d5][%mdl 32]} Bf8 {[%emt 0:08:54] The position is equal.} 14. Ne3 {[%emt 0:02:34][%cal Of2f4]} Ne7 {[%emt 0:00:40]} (14... Be6 $11) 15. a4 $146 {[%emt 0:24:08]} (15. Nhf5 $16) (15. Qf3 Qc6 16. Nef5 Nxf5 17. Nxf5 b5 18. Qe2 Be6 19. f3 c4 20. Be3 a5 21. Red1 {½-½ Nuenchert,E-Lehmann,C DDR Women-ch17 1968 (13)}) 15... Be6 {[%emt 0:01:51]} 16. Nc4 {[%emt 0:01:27][%cal Oh4f5]} Nc6 {[%emt 0:04:13]} 17. Nf5 {[%emt 0:04:34]} Qd7 {[%emt 0:07:14]} 18. Nfe3 {[%emt 0:05:03]} Rab8 {[%emt 0:10:45]} 19. Rd1 {[%emt 0:04:36]} Bxc4 {[%emt 0:06:59]} 20. Qxc4 {[%emt 0:00:34]} Qe6 {[%emt 0:00:09]} (20... Qc7 $11 {remains equal.}) 21. Nd5 {[%emt 0:02:24]} (21. Qxe6 {simplifies} Rxd1+ 22. Nxd1 fxe6 23. a5) 21... Na5 {[%emt 0:06:58]} 22. Qb5 {[%emt 0:04:47]} b6 {[%emt 0:00:32]} 23. Be3 {[%emt 0:04:09]} Nxd5 {[%emt 0:07:25]} 24. Rxd5 {[%emt 0:03:15]} Rxd5 {[%emt 0:00:21]} 25. exd5 {[%emt 0:00:02]} Qe7 {[%emt 0:00:17] Black is weak on the light squares} 26. Re1 {[%emt 0:04:48][%cal Oe3f4]} Rd8 {[%emt 0:02:54] [#]} 27. Bf4 $1 {[%emt 0:05:36]} f6 {[%emt 0:00:13]} (27... g5 28. Bxe5) 28. Bc1 {[%emt 0:04:48]} c4 {[%emt 0:04:32]} 29. Bh3 {[%emt 0:13:02]} Qb7 {[%emt 0:01:07]} 30. Be6+ {[%emt 0:00:41]} Kh8 {[%emt 0:00:07] and ...a6 should not be overlooked} 31. Be3 {[%emt 0:00:46]} Bd6 {[%emt 0:05:02]} 32. h4 {[%emt 0:04:55][%cal Bh2h4,Bh4h5][%mdl 32]} Qc7 {[%emt 0:05:39]} (32... g6 $14) 33. Rd1 {[%emt 0:02:37]} Qb7 {[%emt 0:01:14]} 34. Kg2 {[%emt 0:00:46]} Qc7 {[%emt 0:01:16]} 35. f3 {[%emt 0:00:44]} Qe7 {[%emt 0:04:16]} 36. h5 $36 {[%emt 0:00:13][%mdl 2048] White is on the roll.} Qf8 {[%emt 0:00:34]} 37. Bf5 {[%emt 0:00:41] White has more active pieces.} Qf7 {[%emt 0:00:20]} 38. Rh1 {[%emt 0:00:11]} Qb7 {[%emt 0:02:18]} 39. Rh4 {[%emt 0:01:06]} Be7 {[%emt 0:01:21]} 40. Be6 {[%emt 0:00:29]} f5 {[%emt 0:02:17] Wards off Rg4} 41. Rh1 $16 {[%emt 0:30:27][%cal Oh1d1]} Rf8 {[%emt 0:33:57]} 42. Bf2 {[%emt 0:00:00]} Bd6 {[%emt 0:00:00]} 43. Qd7 {[%emt 0:00:00][%csl Oe6] Strong Square White (e6)} Qxd7 {[%emt 0:00:00]} 44. Bxd7 {[%emt 0:00:00]} Kh7 {[%emt 0:00:00]} 45. Be3 {[%emt 0:00:00]} Nb3 {[%emt 0:00:00]} 46. g4 {[%emt 0:00:00]} f4 {[%emt 0:00:00]} 47. Bf2 {[%emt 0:00:00]} Rf7 {[%emt 0:00:00]} 48. Bf5+ {[%emt 0:00:00]} Kh8 {[%emt 0:00:00]} 49. Re1 {[%emt 0:00:00]} Rc7 {[%emt 0:00:00]} 50. Bc2 {[%emt 0:00:23]} Nc5 {[%emt 0:05:30] Black is on the road to losing.} (50... Kg8 $1 $14) 51. Kh3 {[%emt 0:02:07]} Kg8 {[%emt 0:00:00] [#]} 52. g5 $1 {[%emt 0:01:01]} hxg5 {[%emt 0:00:00]} 53. Kg4 {[%emt 0:00:47]} Kf7 {[%emt 0:00:00]} 54. Kxg5 {[%emt 0:00:37]} Be7+ {[%emt 0:00:00]} 55. Kg4 {[%emt 0:01:00]} Nd7 {[%emt 0:00:00]} (55... Bd6 {might work better.} 56. Bg6+ Ke7 57. Bh4+ Kf8) 56. Bg6+ $18 {[%emt 0:00:15]} Kg8 {[%emt 0:00:00]} 57. Kf5 {[%emt 0:02:32] Ke6 is the strong threat.} Bf6 {[%emt 0:00:00]} (57... Nc5 $142 58. Bxc5 (58. Rxe5 Nd3 $18) (58. Kxe5 Rd7 $18) 58... Bxc5 59. Rxe5 Rc8) 58. d6 {[%emt 0:00:00]} Rc8 {[%emt 0:00:00]} 59. Ke6 {[%emt 0:00:00]} Nf8+ {[%emt 0:00:00]} 60. Kd5 {[%emt 0:00:00]} Rd8 {[%emt 0:00:00]} 61. Rd1 {[%emt 0:00:05]} ({Not} 61. Kxc4 Rxd6 62. a5 Rd2 63. axb6 axb6 64. Bxb6 Rxb2 $16) 61... Nd7 {[%emt 0:00:00]} 62. Kxc4 {[%emt 0:00:23] White is clearly winning.} Kf8 {[%emt 0:00:00]} 63. Kd5 {[%emt 0:01:00]} Kg8 {[%emt 0:00:00]} 64. Kc6 {[%emt 0:00:37]} Nf8 {[%emt 0:00:00]} 65. d7 {[%emt 0:00:47]} Ne6 {[%emt 0:00:00]} 66. Kb7 {[%emt 0:00:56]} Kf8 {[%emt 0:00:00]} 67. Kxa7 {[%emt 0:00:20]} Ke7 {[%emt 0:00:00]} 68. Be8 {[%emt 0:00:20] Weighted Error Value: White=0.10 (very precise) /Black=0.19 (very precise)   Mistake:       	White=1     	Black=7      Inaccurate:     	White=6     	Black=5      OK:         	White=24    	Black=18     Best:        	White=5     	Black=3      Strong:       	White=1     	---} 1-0

[Event "Frauenbundesliga 2024-25"]
[Site "Germany"]
[Date "2025.01.25"]
[Round "3.9"]
[White "Ziegenfuss, Antonia"]
[Black "Ter-Avetisjana, Agnesa Stepania"]
[Result "1-0"]
[Annotator "TA"]
[ECO "D10"]
[WhiteElo "2174"]
[BlackElo "2125"]
[PlyCount "71"]
[EventDate "2024.11.06"]
[EventType "team-tourn"]
[EventCountry "GER"]
[SourceTitle "playchess.com"]
[Source "ChessBase"]
[SourceQuality "1"]
[WhiteTeam "Hamburger SK"]
[BlackTeam "1871 Loeberitz"]
[TimeControl "40/5400+30:1800+30"]

{[%evp 9,70,-8,2,-4,0,0,0,0,-9,0,0,0,34,56,76,29,35,-4,-8,-4,0,-70,-21,-70,-63,-89,5,0,11,0,0,-18,-15,-46,0,-14,0,0,0,-482,-80,-77,-77,-259,0,-66,-21,-183,0,0,121,127,107,40,50,-266,87,83,86,89,29998,29999,29999]} 1. d4 {[%emt 0:00:03]} d5 {[%emt 0:00:49]} 2. c4 {[%emt 0:00:08]} c6 {[%emt 0:00:30]} 3. Nc3 {[%emt 0:00:30]} Nf6 {[%emt 0:00:00]} 4. cxd5 {[%emt 0:00:00]} cxd5 {[%emt 0:00:13]} 5. f3 {[%emt 0:00:30]} Nc6 {[%emt 0:06:38]} 6. e4 {[%emt 0:00:00] D10: Slav Defence: 3 cxd5 (without early Nf3) and 3 Nc3.} dxe4 {[%emt 0:05:11]} 7. d5 {[%emt 0:00:14]} Ne5 {[%emt 0:00:23]} 8. fxe4 {[%emt 0:00:35] The position is equal.} e6 {[%emt 0:07:40]} 9. Nf3 {[%emt 0:00:54]} Nxf3+ {[%emt 0:01:49]} 10. Qxf3 {[%emt 0:00:13]} Qb6 {[%emt 0:07:56]} 11. Bg5 {[%emt 0:24:19]} Bd7 $146 {[%emt 0:15:36]} (11... Be7 12. Bb5+ Kf8 13. O-O-O Nxd5 14. Rxd5 exd5 15. Bxe7+ Kg8 16. exd5 a6 17. Rf1 f6 18. Bc4 h6 19. d6+ Kh7 20. Qe4+ g6 21. Rxf6 {1-0 Hauge,L (2466)-Janzelj,L (2239) Rilton Cup 48th 2018 (1)}) 12. Bxf6 {[%emt 0:09:41]} (12. O-O-O $1 $16) 12... gxf6 $11 {[%emt 0:00:18]} 13. Qxf6 {[%emt 0:00:29]} Rg8 $1 {[%emt 0:00:21] Black sacrificed a pawn} (13... Qxb2 14. Rb1 Qa3 15. dxe6 (15. Qxh8 O-O-O $18) 15... fxe6 16. Be2 $18 (16. Qxh8 O-O-O $18)) 14. dxe6 {[%emt 0:04:36]} fxe6 {[%emt 0:02:10]} 15. Be2 {[%emt 0:02:16]} (15. O-O-O $11 Be7 16. Qf3) 15... Be7 {[%emt 0:04:49]} (15... Rg6 $1 $15 16. Bh5 Qe3+ 17. Ne2 Bb4+ 18. Kf1 Qxe4 19. Bxg6+ hxg6) 16. Bh5+ {[%emt 0:02:33]} (16. Qf2 $11) 16... Kd8 $15 {[%emt 0:00:06][%mdl 1024] Black has compensation.} 17. Qf3 {[%emt 0:04:39]} Rc8 {[%emt 0:05:40]} (17... Qxb2 $17 18. O-O Rc8) 18. O-O-O $11 {[%emt 0:04:24]} Rc7 {[%emt 0:09:04]} 19. Kb1 {[%emt 0:09:09]} Kc8 {[%emt 0:11:36]} 20. Rhf1 {[%emt 0:02:13]} Kb8 $40 {[%emt 0:02:29][%mdl 128] Black attacks.} 21. Ka1 {[%emt 0:07:02]} a5 {[%emt 0:02:18]} (21... Bd6 $15) 22. Bf7 {[%emt 0:04:15]} Rgc8 {[%emt 0:03:32]} 23. Qg3 {[%emt 0:04:18]} Ka8 {[%emt 0:00:18]} 24. Qh3 $2 {[%emt 0:03:10][%mdl 8192] [#]} (24. Rf3 $11) 24... Ba3 $2 {[%emt 0:05:15]} 25. Rb1 $17 {[%emt 0:03:34]} (25. Rd2 a4 26. Rb1 (26. bxa3 $2 Rxc3 27. Rb1 Qc7 $19) 26... Qa5 27. Nxa4 Bxa4 (27... Qxd2 28. Nb6+ Kb8 29. Qxa3 $11) 28. Qxa3 Qxd2 $15 (28... Rxf7 29. Rd4 $11)) 25... Bb4 {[%emt 0:01:40][%cal Rc7c3]} 26. Rfc1 {[%emt 0:03:23] [#]} (26. Qd3 $17) 26... Rf8 $2 {[%emt 0:01:40]} (26... a4 $1 $19 {[%cal Ra4a3] and ...a3 should not be overlooked} 27. a3 Bxc3 28. Rxc3 Rxc3 29. bxc3 Qc5) 27. Qh6 {[%emt 0:02:33]} Ka7 {[%emt 0:01:45]} (27... Rxf7 $2 28. Nd5 Qd6 29. Nxc7+ $18) 28. Bxe6 {[%emt 0:03:43] [#]} (28. Bh5 $1 $11 {and White has nothing to worry.}) 28... Bxe6 $2 {[%emt 0:02:59]} (28... Qxe6 29. Nb5+ (29. Qxh7 $2 Bxc3 30. Rxc3 Rxc3 $19) (29. Qxe6 Bxe6 30. Nb5+ Kb8 $18) 29... Kb8 30. Qxe6 (30. Nxc7 $2 Qxh6 31. Nd5 Bd6 $19) 30... Bxe6 31. Rxc7 $18 (31. Nxc7 Bg4 $18)) (28... Rxc3 $1 $19 29. Rxc3 (29. bxc3 $2 Rf2 $19) 29... Bxe6 (29... Qxe6 30. Qxe6 Bxe6 31. Rf3 $11)) 29. Na4 $11 {[%emt 0:00:11]} Qb5 {[%emt 0:01:38]} (29... Qd6 $6 30. Rxc7 Qxc7 31. Qxe6 $16) (29... Rxc1 $1 $11 30. Nxb6 Rxb1+ 31. Kxb1 Rf1+ 32. Kc2 Rf2+ 33. Kb1 Rf1+) 30. Rxc7 $16 {[%emt 0:00:21]} Bxa2 {[%emt 0:00:05] A strong pair of Bishops.} 31. Qe3+ {[%emt 0:03:25]} (31. Nc3 $16 Qb6 32. Qxb6+ (32. Rxh7 Bxb1 33. Qxb6+ Kxb6 $16) (32. Qxh7 Bxb1 33. Kxb1 Bxc3 $11) 32... Kxb6 33. Rxh7 Bxb1 34. Nd5+ (34. Nxb1 Rf2 $15) (34. Kxb1 Bxc3 35. bxc3 Rf1+ 36. Kc2 Rf2+ 37. Kb3 Rxg2 $14) 34... Ka7 35. Kxb1) 31... Kb8 $1 $14 {[%emt 0:00:14]} 32. Nb6 {[%emt 0:00:30][%mdl 8192]} (32. Rxh7 Qxa4 (32... Bxb1 $2 33. Nb6 $19) 33. Qg3+ Ka8) (32. Nc3 $14 {was forced to keep a grip.} Bxc3 33. Rxc3 (33. Qxc3 $2 Qa4 $19) 33... Bxb1 34. Kxb1) 32... Kxc7 $2 {[%emt 0:00:41]} (32... Bxb1 $19 33. Qg3 Ka7 (33... Qxb6 $2 {loses.} 34. Rc6+ Ka7 35. Rxb6 $18) 34. Nc8+ Ka8 (34... Rxc8 $2 35. Rxc8 Qd3 36. Qf2+ Ka6 37. Rc1 $18) 35. Kxb1 Rf1+ 36. Rc1 Rxc1+ 37. Kxc1 Qc6+ 38. Kb1 Qxc8) 33. Rc1+ $16 {[%emt 0:00:05]} ({Don't play} 33. Kxa2 $6 Bc5 34. Nd5+ Kb8 $11) 33... Kb8 {[%emt 0:01:03]} 34. Kxa2 {[%emt 0:00:34] Qd4 is the strong threat.} Rf6 $2 {[%emt 0:00:19][%mdl 8192]} (34... Bd2 $16 35. Qc5 (35. Qxd2 Qxb6 36. Qc3 Qe6+ 37. Ka1 Qxe4 $16) 35... Qxc5 36. Rxc5 Rf1) 35. Rc8+ {[%emt 0:00:12]} Ka7 {[%emt 0:00:06]} 36. Ra8# {[%emt 0:00:04] What a bad dream for Black.   Weighted Error Value: White=0.57/Black=0.70  Loses game:     	White=4     	Black=1      Missed win:     	---       	Black=4      Mistake:       	White=5     	Black=4      Inaccurate:     	White=3     	Black=2      OK:         	White=8     	Black=11     Best:        	White=6     	Black=3      Strong:       	---       	Black=2} 1-0